bitfinex-derivatives/quotes_ETHF0:USTF0_20251028
["timestamp","ask_amount","ask_price","bid_price","bid_amount"]
[1761630323546,3.96780749,4079.0,4078.9,0.3212]
[1761630323931,3.96780749,4079.0,4078.9,0.7506]
[1761630324134,0.132,4079.5,4079.4,0.5383]
[1761630324539,40.93499483,4079.5,4079.4,0.7506]
[1761630325540,0.00299483,4079.5,4079.4,1.19184]
[1761630325931,3.70380749,4080.5,4080.0,0.1278]
[1761630326137,40.8,4080.4,4080.3,0.5383]
[1761630326336,0.264,4080.1,4080.0,0.1278]
[1761630326539,0.264,4080.1,4080.0,0.3449]
[1761630327045,41.06579749,4080.1,4080.0,0.6661]
[1761630327446,41.06579749,4080.1,4080.0,0.8784]
[1761630327943,40.80179749,4080.1,4080.0,0.8784]
[1761630328338,40.80179749,4080.1,4080.0,0.3212]
[1761630328743,40.80179749,4080.1,4080.0,0.449]
[1761630329043,40.80179749,4080.1,4080.0,0.6661]
[1761630329254,40.80179749,4080.1,4080.0,0.8784]
[1761630329944,7.16740185,4081.1,4080.0,0.8784]
[1761630330150,0.75730603,4081.0,4080.9,0.5383]
[1761630330446,40.932,4081.0,4080.9,0.5383]
[1761630331243,41.56006569,4081.0,4080.9,0.5383]
[1761630331846,41.56006569,4081.0,4080.9,0.7506]
[1761630332244,41.42806569,4081.0,4080.9,0.7506]
[1761630332449,0.62806569,4081.0,4080.9,1.19168]
[1761630332650,0.00245397,4081.0,4080.9,1.19168]
[1761630332849,4.10226146,4081.0,4080.1,0.3212]
[1761630333045,0.264,4080.2,4080.1,0.5383]
[1761630333443,0.264,4080.2,4080.1,0.7506]
[1761630333643,0.132,4080.2,4080.1,0.7506]
[1761630333845,40.8,4080.4,4080.2,0.3212]
[1761630334040,40.8,4080.4,4080.3,0.3212]
[1761630334336,40.8,4080.4,4079.0,0.1278]
[1761630334337,0.4335,4079.5,4079.0,0.3434]
[1761630334538,0.4335,4079.5,4078.5,0.1278]
[1761630334539,0.289,4079.1,4078.5,0.1278]
[1761630334746,0.62504275,4079.4,4078.1,0.00248184]
[1761630334747,0.289,4078.3,4078.1,0.00248184]
[1761630334955,0.289,4078.2,4078.1,0.32658184]
[1761630335139,41.71403138,4078.2,4078.1,0.32658184]
[1761630336251,41.71403138,4078.2,4078.1,0.54218184]
[1761630336546,41.85853138,4078.2,4078.1,0.00248184]
[1761630337749,0.1445,4078.1,4076.1,0.3241]
[1761630337945,3.70380749,4077.2,4077.1,0.758]
[1761630338141,3.99280749,4077.3,4076.4,0.1327]
[1761630338338,0.1445,4076.5,4076.4,0.6724]
[1761630338545,0.62095178,4076.5,4076.4,0.5666]
[1761630338743,0.62095178,4076.5,4076.4,0.56878899]
[1761630338744,0.62289372,4076.5,4076.4,0.56878899]
[1761630339054,0.62289372,4076.5,4076.4,0.45898899]
[1761630339245,1.05639372,4076.5,4076.4,0.00218899]
[1761630339558,0.289,4075.6,4074.9,0.3241]
[1761630339845,0.289,4075.6,4074.6,0.1327]
[1761630339846,0.62095178,4075.5,4075.3,0.3241]
[1761630340049,3.70380749,4075.6,4075.5,0.758]
[1761630340252,4.90906649,4075.6,4075.5,0.5397]
[1761630340443,0.763609,4075.6,4075.5,0.32688621]
[1761630340744,0.619109,4075.6,4075.5,1.20244621]
[1761630340948,3.84830749,4077.0,4075.8,0.3241]
[1761630341141,0.44153,4076.8,4075.8,0.44162]
[1761630341341,0.61924793,4076.7,4076.1,0.4568]
[1761630341538,0.289,4076.3,4076.2,0.3241]
[1761630341742,0.90824793,4076.3,4076.2,0.3241]
[1761630341943,0.62230736,4076.3,4076.2,0.758]
[1761630342141,0.62230736,4076.3,4076.2,1.19959]
[1761630342346,0.00305943,4076.3,4076.2,1.19959]
[1761630343053,0.86632815,4077.7,4076.2,0.3241]
[1761630343253,0.61819457,4077.6,4077.5,0.4568]
[1761630343647,0.61819457,4077.6,4077.5,0.8907]
[1761630343955,0.44137,4078.3,4077.7,0.3241]
[1761630344145,0.1445,4077.8,4077.7,0.3241]
[1761630344339,0.1445,4077.8,4077.1,0.3241]
[1761630344340,0.289,4077.2,4077.1,0.3241]
[1761630344652,0.44157,4076.4,4076.2,0.3241]
[1761630344850,0.44155,4076.6,4076.2,0.3241]
[1761630345053,0.90718081,4076.5,4076.4,0.3241]
[1761630345240,41.70718081,4076.5,4076.4,0.3241]
[1761630345446,41.41818081,4076.5,4076.4,1.19957]
[1761630345648,40.8,4076.5,4076.4,0.758]
[1761630345845,3.70380749,4076.8,4076.2,0.3241]
[1761630346048,3.84830749,4076.3,4076.0,0.3241]
[1761630346251,0.44162,4076.0,4075.6,0.3241]
[1761630346449,0.44163,4075.9,4075.6,0.3241]
[1761630346647,0.44164,4075.7,4075.6,0.3241]
[1761630346957,0.58614,4075.7,4075.6,0.3241]
[1761630347153,0.289,4075.7,4075.6,0.3241]
[1761630347355,3.70380749,4076.1,4075.7,0.3241]
[1761630347558,3.70380749,4076.1,4075.5,0.00278621]
[1761630347559,0.4335,4075.6,4075.5,0.00278621]
[1761630347849,4.70586136,4075.6,4075.5,0.00278621]
[1761630348354,4.56136136,4075.6,4075.5,0.32688621]
[1761630348751,4.56136136,4075.6,4075.5,0.00278621]
[1761630349259,4.65696136,4075.6,4075.5,0.00278621]
[1761630349453,0.0956,4074.7,4074.6,0.3241]
[1761630349753,0.0956,4075.8,4074.7,0.1327]
[1761630349955,3.70380749,4075.5,4074.8,0.3241]
[1761630350363,0.0956,4074.9,4074.8,0.32690915]
[1761630350550,0.0956,4074.9,4074.2,0.3241]
[1761630350551,0.2868,4074.9,4074.2,0.3241]
[1761630350750,0.2868,4074.3,4073.7,0.3241]
[1761630351454,0.1912,4074.3,4073.7,0.3241]
[1761630351771,0.1912,4074.3,4073.7,0.32722888]
[1761630352059,0.1912,4074.3,4074.1,0.3241]
[1761630352355,0.2868,4074.3,4073.7,0.32722888]
[1761630353348,0.1912,4074.3,4073.7,0.32722888]
[1761630353564,0.14232338,4074.3,4073.7,0.32722888]
[1761630354062,0.00176314,4075.5,4074.1,0.758]
[1761630354063,40.8,4074.2,4074.1,0.758]
[1761630355358,40.8,4074.2,4074.1,1.19982]
[1761630355759,3.70380749,4075.2,4074.7,0.1327]
[1761630355952,0.00176314,4075.5,4075.1,0.5397]
[1761630356264,0.00176314,4075.5,4074.8,0.44173]
[1761630356265,40.8,4075.4,4075.2,0.3241]
[1761630356649,40.8,4075.4,4075.3,0.758]
[1761630357857,0.1404,4073.8,4073.7,2.888e-05]
[1761630358059,0.1308,4072.9,4070.2,1.10561]
[1761630358359,3.70380749,4071.8,4071.3,0.3241]
[1761630358560,40.8,4071.7,4071.3,0.3241]
[1761630358761,40.8,4071.7,4071.6,0.3241]
[1761630358964,40.80275988,4071.7,4071.6,0.54276736]
[1761630359274,3.70380749,4073.6,4071.9,0.3241]
[1761630359556,3.70380749,4074.1,4073.5,0.5397]
[1761630359760,22.088,4075.5,4072.8,0.1327]
[1761630359761,22.95432815,4075.5,4072.9,0.3241]
[1761630359961,3.70380749,4073.6,4073.0,0.3241]
[1761630360158,0.00263033,4073.6,4071.4,0.3241]
[1761630360365,0.00263033,4073.6,4072.3,0.3241]
[1761630360366,3.70380749,4072.8,4072.3,0.3241]
[1761630360559,3.70380749,4073.1,4072.3,0.3241]
[1761630360860,3.70380749,4073.1,4072.5,0.3241]
[1761630361661,3.70380749,4072.6,4071.9,0.3241]
[1761630361851,0.7837,4071.7,4070.9,0.44215]
[1761630362057,0.7837,4071.7,4070.5,0.1327]
[1761630362058,0.7837,4071.7,4070.7,0.44218]
[1761630362464,3.70380749,4072.0,4070.8,0.44217]
[1761630362668,3.70380749,4072.0,4070.9,0.44216]
[1761630362861,4.02440749,4072.0,4071.0,0.44215]
[1761630363161,0.1069,4072.8,4071.0,0.00309717]
[1761630363162,3.70380749,4072.5,4071.0,0.00309717]
[1761630363458,3.70380749,4073.0,4072.0,0.1327]
[1761630363658,3.70643782,4073.6,4072.8,0.1327]
[1761630363858,40.8,4073.5,4073.1,0.3241]
[1761630364058,3.70643782,4073.6,4073.2,0.44191]
[1761630364059,0.00263033,4073.6,4073.2,0.44191]
[1761630364260,0.00263033,4073.6,4073.3,0.766]
[1761630364569,22.093,4074.9,4072.8,0.1327]
[1761630364570,40.8,4074.0,4073.9,0.97453]
[1761630364756,3.70380749,4075.1,4073.7,0.3186]
[1761630364956,3.70380749,4075.1,4074.5,0.3186]
[1761630365163,3.70380749,4075.6,4074.8,0.76033]
[1761630365357,3.70380749,4075.6,4074.8,0.00242027]
[1761630365558,0.00235997,4075.6,4075.1,0.3186]
[1761630365766,0.00235997,4075.6,4075.3,0.3186]
[1761630365959,0.00235997,4075.6,4075.5,0.3186]
[1761630366865,3.70380749,4076.8,4076.2,0.3195]
[1761630367365,3.70380749,4076.8,4076.2,0.76109]
[1761630367567,3.70380749,4076.8,4076.3,0.3195]
[1761630367768,4.01445835,4076.8,4076.3,0.3195]
[1761630368067,0.3084,4076.7,4076.3,0.3195]
[1761630368558,3.70605835,4076.8,4076.3,0.3195]
[1761630368758,4.01445835,4076.8,4076.3,0.3195]
[1761630369463,0.5217,4075.9,4074.4,0.1286]
[1761630369672,3.91710749,4075.0,4074.4,0.1286]
[1761630369856,3.70380749,4076.1,4075.0,0.3195]
[1761630370056,0.3084,4076.0,4075.0,0.3195]
[1761630370358,0.2133,4075.1,4074.8,0.32192027]
[1761630370761,3.70380749,4075.6,4074.9,0.3195]
[1761630370960,4.01220749,4076.1,4075.1,0.3195]
[1761630371171,4.01220749,4076.1,4075.2,0.1387]
[1761630371369,3.99996719,4076.1,4075.4,0.3195]
[1761630371966,0.2133,4075.5,4075.2,0.4582]
[1761630372766,0.2133,4074.9,4074.8,0.00242027]
[1761630372965,0.4251,4074.9,4074.8,0.00242027]
[1761630373361,0.2962,4075.8,4074.9,0.3195]
[1761630373565,0.7213,4074.9,4074.8,0.00242027]
[1761630373765,41.5213,4074.9,4074.8,0.00242027]
[1761630374073,41.2251,4074.9,4074.8,0.32192027]
[1761630374774,41.2251,4074.9,4074.8,0.00242027]
[1761630375170,40.8,4074.9,4074.8,1.19956027]
[1761630375360,3.70380749,4075.7,4074.9,0.3195]
[1761630375869,40.8,4075.7,4075.6,0.5376]
[1761630376175,0.2118,4074.9,4074.8,0.00242027]
[1761630376368,0.7213,4074.9,4074.8,0.00242027]
[1761630376564,0.4251,4074.9,4074.8,0.00242027]
[1761630376768,3.70380749,4075.6,4074.8,0.32192027]
[1761630377470,40.8,4075.7,4075.0,0.3195]
[1761630377672,40.8,4075.7,4075.1,0.3195]
[1761630378067,40.8,4075.7,4074.9,0.3195]
[1761630378275,40.8,4075.7,4075.2,0.4582]
[1761630378575,40.8,4075.7,4075.3,0.3195]
[1761630378774,40.8,4075.7,4075.6,0.5376]
[1761630379676,0.2962,4076.6,4075.7,0.3195]
[1761630379866,0.29007761,4076.6,4076.0,0.1387]
[1761630380066,0.00225086,4076.8,4076.1,0.3195]
[1761630380664,0.00225086,4076.8,4076.1,0.76109]
[1761630380867,40.8,4076.7,4076.3,0.44157]
[1761630381078,40.8,4076.7,4076.3,0.44158]
[1761630381265,40.8,4076.7,4076.4,0.3195]
[1761630381874,0.2133,4076.2,4075.7,0.3195]
[1761630382274,0.2133,4076.2,4075.8,0.3195]
[1761630382580,0.2133,4076.2,4075.3,0.3195]
[1761630382777,0.2133,4076.2,4075.7,0.76114]
[1761630383080,0.2133,4076.2,4075.8,0.3195]
[1761630383284,0.2133,4076.2,4075.8,0.44163]
[1761630383579,0.00225086,4076.8,4076.7,0.3195]
[1761630383879,0.00225086,4076.8,4076.7,0.5376]
[1761630384075,40.80225086,4076.8,4076.7,0.5376]
[1761630385480,0.00225086,4076.8,4076.7,0.7554]
[1761630386877,40.79918963,4077.4,4076.9,0.3195]
[1761630387275,40.79918963,4077.4,4077.3,0.2181]
[1761630387475,0.022,4077.8,4077.5,0.1387]
[1761630387678,0.022,4077.8,4077.7,0.7554]
[1761630387974,0.02435788,4077.8,4077.7,0.75715948]
[1761630395885,0.24855788,4077.8,4077.7,0.75715948]
[1761630396086,0.02435788,4077.8,4077.7,1.19858948]
[1761630397690,0.02435788,4077.8,4077.7,0.75715948]
[1761630399480,40.8,4078.6,4078.5,0.5456]
[1761630400489,40.80247994,4078.6,4078.5,0.5456]
[1761630404790,0.2242,4078.3,4078.2,0.3445]
[1761630405289,0.2242,4078.3,4078.2,0.677]
[1761630405490,0.7447,4078.3,4078.2,0.3325]
[1761630405695,0.4547,4077.9,4077.8,0.5456]
[1761630406185,41.09247994,4078.6,4077.9,0.3325]
[1761630408897,41.09247994,4078.6,4078.0,0.1314]
[1761630409097,0.2242,4078.2,4078.1,0.5456]
[1761630409296,0.2242,4078.2,4078.1,0.7755]
[1761630410703,0.7447,4078.2,4078.1,0.5456]
[1761630411201,0.4547,4078.2,4078.1,0.5456]
[1761630411594,0.7447,4078.2,4078.1,0.5456]
[1761630411995,0.4547,4078.2,4078.1,0.7755]
[1761630412303,40.80247994,4078.6,4078.5,0.9069]
[1761630414398,0.00247994,4078.6,4078.5,0.9069]
[1761630415606,0.45717994,4078.6,4078.5,0.9069]
[1761630417000,0.74717994,4078.6,4078.5,0.5456]
[1761630417195,0.74717994,4078.6,4078.2,0.5456]
[1761630417196,0.4547,4078.3,4078.2,0.5456]
[1761630417597,0.4547,4078.3,4078.2,0.7755]
[1761630417996,0.00247994,4078.6,4078.2,0.7755]
[1761630418302,0.81766189,4078.5,4078.4,0.5456]
[1761630418500,1.04816189,4078.5,4078.4,0.5456]
[1761630419092,1.33816189,4078.5,4078.4,0.3325]
[1761630419307,0.7447,4077.8,4077.7,0.00175948]
[1761630419499,1.3381458,4077.8,4077.7,0.00175948]
[1761630420000,41.8481458,4077.8,4077.7,0.54735948]
[1761630420401,42.1381458,4077.8,4077.7,0.54735948]
[1761630420606,41.8481458,4077.8,4077.7,0.54735948]
[1761630421007,41.8481458,4077.8,4077.7,0.77725948]
[1761630421696,41.6176458,4077.8,4077.7,0.77725948]
[1761630421895,0.2242,4078.5,4078.4,0.7755]
[1761630422411,0.00247994,4078.6,4078.5,0.9069]
[1761630422905,40.80247994,4078.6,4078.5,0.9069]
[1761630423298,0.00247994,4078.6,4078.5,0.9069]
[1761630423907,0.2242,4079.8,4079.4,0.3325]
[1761630424100,4.39096145,4080.3,4079.4,0.5456]
[1761630424101,0.4547,4079.5,4079.4,0.5456]
[1761630424401,40.8,4079.5,4079.4,0.757]
[1761630424605,0.2168,4079.7,4079.6,0.7463]
[1761630424906,0.21910356,4079.7,4079.6,0.7463]
[1761630425104,40.80230356,4079.7,4079.6,0.7463]
[1761630425300,0.00230356,4079.7,4079.6,1.18752]
[1761630425499,0.00230356,4079.7,4079.0,0.1314]
[1761630425500,0.2902,4079.6,4079.0,0.348]
[1761630425707,0.7341,4078.3,4078.1,0.3183]
[1761630426006,0.1069,4079.0,4077.0,0.1354]
[1761630426007,0.4439,4077.9,4077.8,0.3183]
[1761630426204,40.8,4078.2,4077.9,0.3183]
[1761630426406,1.2875305,4079.8,4077.8,0.2114]
[1761630426407,0.29097333,4079.7,4078.4,0.3183]
[1761630426596,0.29097333,4079.7,4078.9,0.3183]
[1761630426797,0.23297333,4079.7,4079.6,0.5551]
[1761630427202,0.23297333,4079.7,4079.6,0.7782]
[1761630427203,0.00077333,4079.7,4079.6,0.7782]
[1761630429102,0.2901,4079.6,4079.0,0.3232]
[1761630429308,0.2322,4079.1,4079.0,0.3232]
[1761630429504,0.00077333,4079.7,4079.1,0.3232]
[1761630429709,0.2322,4078.8,4078.7,0.3232]
[1761630429919,0.2322,4078.8,4078.7,0.7782]
[1761630430102,0.2901,4079.5,4078.9,0.3232]
[1761630430305,0.4586,4079.0,4078.3,0.3232]
[1761630430513,0.2322,4078.4,4078.3,0.3232]
[1761630430908,0.2322,4078.4,4078.3,0.5551]
[1761630431109,0.2901,4079.6,4078.4,0.3232]
[1761630431313,0.00077333,4079.7,4078.9,0.3232]
[1761630431504,0.00077333,4079.7,4078.9,0.76449]
[1761630431712,0.00077333,4079.7,4079.0,0.76448]
[1761630432018,0.00077333,4079.7,4079.6,0.7782]
[1761630432518,0.23297333,4079.7,4079.6,0.7782]
[1761630432907,0.4586,4078.3,4078.2,0.3232]
[1761630433103,0.4586,4077.8,4077.7,0.00175948]
[1761630433312,4.39096145,4078.4,4077.7,0.45675948]
[1761630433516,0.2901,4078.9,4077.8,0.3232]
[1761630433812,0.2901,4078.9,4077.8,0.44142]
[1761630434111,40.8,4078.8,4078.0,0.76459]
[1761630434323,40.8,4078.8,4078.7,0.2319]
[1761630434512,40.8,4078.8,4078.7,0.7782]
[1761630435215,0.2901,4079.8,4079.0,0.3232]
[1761630435409,0.29087333,4079.7,4079.0,0.3232]
[1761630435612,40.8,4079.3,4079.0,0.3232]
[1761630436420,40.8,4079.3,4078.9,0.1373]
[1761630436421,40.8,4079.3,4079.2,0.5551]
[1761630436715,0.4465,4078.9,4077.8,1.76114319]
[1761630437013,0.4465,4078.9,4077.8,0.455]
[1761630437317,0.3445,4078.9,4077.8,0.89641]
[1761630437713,40.8,4079.3,4078.2,0.1373]
[1761630438108,40.8,4079.3,4078.4,0.44135]
[1761630438314,40.8,4079.3,4079.2,0.2319]
[1761630438711,40.8,4079.3,4079.2,0.5551]
[1761630438923,0.00077333,4079.7,4079.3,0.3232]
[1761630439110,0.00077333,4079.7,4079.6,0.9155]
[1761630441310,0.3445,4081.3,4080.1,0.3232]
[1761630441515,0.3445,4081.3,4080.3,0.1373]
[1761630441721,0.3445,4081.7,4080.4,0.3232]
[1761630442017,3.70202974,4081.9,4080.5,0.3232]
[1761630442018,7.55809492,4081.5,4080.5,0.3232]
[1761630442222,7.56076596,4081.5,4080.5,0.3232]
[1761630442423,7.21626596,4081.5,4080.7,0.3232]
[1761630442611,7.21626596,4081.5,4081.4,0.5551]
[1761630442612,0.00267104,4081.5,4081.4,0.5551]
[1761630443124,0.23487104,4081.5,4081.4,0.3232]
[1761630443822,0.23487104,4081.5,4081.4,0.5551]
[1761630444024,41.03487104,4081.5,4081.4,0.3232]
[1761630444226,41.37937104,4081.5,4081.4,0.3232]
[1761630445415,0.2322,4081.2,4081.1,0.3232]
[1761630445616,0.2322,4081.2,4081.1,0.5551]
[1761630445817,40.80267104,4081.5,4081.4,0.7782]
[1761630446416,0.00267104,4081.5,4081.4,0.7782]
[1761630450627,0.3445,4080.8,4080.7,0.00315624]
[1761630450827,0.8031,4080.8,4080.7,0.00315624]
[1761630451127,0.4586,4080.8,4080.7,0.55825624]
[1761630451329,3.70202974,4081.0,4080.8,0.3232]
[1761630451330,0.2322,4080.9,4080.8,0.3232]
[1761630451625,0.4586,4080.9,4080.8,0.3232]
[1761630451825,41.6031,4080.9,4080.8,0.3232]
[1761630452324,0.8031,4080.8,4080.7,0.00315624]
[1761630452719,40.8,4080.9,4080.7,0.00315624]
[1761630452720,40.8,4080.9,4080.8,0.3232]
[1761630452925,0.00267104,4081.5,4080.9,0.3232]
[1761630453319,0.00267104,4081.5,4081.4,0.5551]
[1761630453627,0.23487104,4081.5,4081.4,0.5551]
[1761630453926,41.37937104,4081.5,4081.2,0.4605]
[1761630454125,0.2264,4081.4,4081.3,0.3232]
[1761630454328,0.4395,4081.4,4081.3,0.3232]
[1761630454825,0.4412,4080.8,4080.7,0.00315624]
[1761630455023,0.4412,4080.8,4080.7,0.55795624]
[1761630455926,0.3459,4081.2,4080.7,0.42525624]
[1761630456127,0.3459,4081.2,4080.8,0.3453]
[1761630456329,0.2131,4080.9,4080.8,0.3453]
[1761630456630,0.4412,4080.8,4080.7,0.55795624]
[1761630456930,0.2131,4080.8,4080.7,0.77055624]
[1761630457127,3.70202974,4081.1,4080.8,0.3453]
[1761630457426,40.80267104,4081.5,4080.8,0.7674]
[1761630457626,0.2281,4081.0,4080.9,0.3453]
[1761630457826,0.2281,4081.0,4080.7,0.00315624]
[1761630457827,0.3459,4080.9,4080.7,0.34845624]
[1761630458027,0.2131,4080.8,4080.7,0.34845624]
[1761630458227,0.2131,4080.8,4080.7,0.55795624]
[1761630459523,0.2131,4080.8,4080.7,0.77055624]
[1761630460624,0.3459,4081.3,4080.7,0.77055624]
[1761630460824,0.3459,4081.3,4080.8,0.3453]
[1761630460825,0.2131,4080.9,4080.8,0.3453]
[1761630461033,0.559,4080.8,4080.7,0.00315624]
[1761630461219,0.2131,4079.6,4079.5,0.3453]
[1761630461526,0.2131,4079.6,4079.5,0.5548]
[1761630462332,0.2131,4079.6,4079.5,0.55772042]
[1761630462525,40.8,4079.9,4079.6,0.3453]
[1761630462730,0.3459,4080.8,4079.9,0.3453]
[1761630462930,0.3459,4080.8,4080.1,0.3453]
[1761630463130,0.3459,4080.8,4080.0,0.1288]
[1761630463131,40.8,4080.7,4080.0,0.1288]
[1761630463330,40.8,4080.7,4080.6,0.5548]
[1761630464129,40.8,4080.7,4080.6,0.3453]
[1761630464436,0.3459,4080.0,4079.6,0.3453]
[1761630464734,0.3459,4080.5,4079.6,0.3453]
[1761630465629,0.7871,4079.6,4079.5,0.00292042]
[1761630466232,41.2412,4079.6,4079.5,0.34822042]
[1761630466722,41.5871,4079.6,4079.5,0.00292042]
[1761630467327,41.6891,4079.6,4079.5,0.00292042]
[1761630468137,41.5871,4079.6,4079.5,0.00292042]
[1761630468428,41.5871,4079.6,4078.4,1.31696289]
[1761630468429,49.3432,4079.6,4078.4,1.31696289]
[1761630468622,0.3459,4078.4,4078.2,0.3453]
[1761630468823,0.2131,4078.3,4078.2,0.3453]
[1761630469034,0.2131,4078.3,4078.2,0.5548]
[1761630469438,0.2131,4078.3,4078.2,0.55795625]
[1761630469630,0.21549859,4078.3,4078.2,0.55795625]
[1761630470732,0.78949859,4078.3,4078.2,0.00315625]
[1761630470939,0.44359859,4078.3,4078.2,0.55795625]
[1761630473331,0.00239859,4078.3,4078.2,0.89935625]
[1761630473736,0.3459,4079.4,4078.6,0.3453]
[1761630473936,0.3459,4079.4,4078.3,0.3453]
[1761630474134,0.3459,4079.4,4078.7,0.3453]
[1761630474440,0.3459,4079.4,4078.9,0.3453]
[1761630474744,0.34887134,4079.4,4078.9,0.3453]
[1761630475335,0.00297134,4079.4,4078.9,0.3453]
[1761630476936,0.34887134,4079.4,4078.9,0.3453]
[1761630477141,0.4412,4079.0,4078.9,0.2095]
[1761630477437,0.4412,4079.0,4078.9,0.5548]
[1761630477742,41.2412,4079.0,4078.9,0.5548]
[1761630478640,41.5871,4079.0,4078.5,0.3453]
[1761630478842,0.3459,4078.9,4078.5,0.3453]
[1761630479440,0.2131,4078.9,4078.8,0.5548]
[1761630480143,0.4412,4078.9,4078.3,0.3453]
[1761630481139,0.3459,4078.8,4078.3,0.5548]
[1761630481333,0.7871,4078.4,4078.3,0.3453]
[1761630481538,0.7871,4078.3,4078.2,0.00315625]
[1761630481838,0.7871,4078.3,4078.2,0.34845625]
[1761630482444,0.2131,4078.7,4078.6,0.2095]
[1761630482744,40.8,4079.0,4078.9,0.5548]
[1761630483144,41.1459,4079.0,4078.9,0.5548]
[1761630483447,41.1459,4079.0,4078.2,0.57332625]
[1761630483448,41.1459,4079.0,4078.3,0.3453]
[1761630483747,0.00297134,4079.4,4079.3,0.7674]
[1761630484043,0.2131,4079.8,4079.7,0.5548]
[1761630484239,0.4412,4079.8,4079.7,0.5548]
[1761630484546,0.4413,4079.6,4079.5,0.3161]
[1761630484845,0.44332796,4079.6,4079.5,0.3161]
[1761630485046,0.44332796,4079.6,4079.5,0.5394]
[1761630485547,0.00202796,4079.6,4079.5,0.7589]
[1761630490450,0.22482796,4079.6,4079.5,0.7589]
[1761630491049,0.00202796,4079.6,4079.5,0.7589]
[1761630493449,41.1334,4080.4,4080.3,0.7726]
[1761630493450,40.8,4080.4,4080.3,0.7726]
[1761630493648,0.3334,4080.8,4080.3,0.7726]
[1761630493849,0.3334,4080.8,4080.4,0.3267]
[1761630494148,0.2228,4080.8,4080.7,0.5439]
[1761630494453,0.3334,4080.7,4080.1,0.3267]
[1761630494651,0.2107,4080.0,4079.9,0.3267]
[1761630494847,0.3334,4079.9,4079.6,0.3267]
[1761630495056,0.2228,4079.7,4079.6,0.5439]
[1761630495250,0.2228,4079.7,4079.6,0.7726]
[1761630495451,0.4335,4079.7,4079.6,0.7726]
[1761630495647,0.4335,4079.7,4079.2,1.53416289]
[1761630495848,0.2228,4079.4,4079.3,0.7726]
[1761630496050,4.03542974,4080.0,4079.4,0.1355]
[1761630496252,4.03542974,4080.0,4079.5,0.3267]
[1761630496852,0.2228,4080.0,4079.9,0.2172]
[1761630497050,0.2228,4080.5,4080.4,0.5439]
[1761630497250,0.2228,4080.5,4080.4,0.7726]
[1761630497449,40.8,4080.6,4080.5,0.3267]
[1761630497653,40.8,4080.6,4080.5,0.7726]
[1761630498464,0.00262037,4080.8,4080.7,0.7726]
[1761630501871,0.3334,4082.0,4080.7,0.7726]
[1761630501872,0.3334,4082.0,4080.8,0.3267]
[1761630502059,0.3334,4082.0,4080.7,0.4459]
[1761630502060,40.8,4082.1,4081.9,0.4459]
[1761630502251,0.3334,4082.7,4082.1,0.3267]
[1761630502456,0.2228,4082.2,4082.1,0.5439]
[1761630502759,0.2228,4082.2,4081.2,1.45246289]
[1761630502760,0.3334,4081.5,4081.2,0.2172]
[1761630503064,0.4335,4081.3,4081.2,0.32869714]
[1761630503255,0.00248157,4081.5,4081.4,0.2172]
[1761630503560,0.00248157,4081.5,4081.4,0.7726]
[1761630507063,0.22528157,4081.5,4081.4,0.7726]
[1761630507466,0.43598157,4081.5,4081.4,0.7726]
[1761630508367,0.00248157,4081.5,4081.4,0.7726]
[1761630509866,0.22528157,4081.5,4081.4,0.7726]
[1761630510073,0.43598157,4081.5,4081.4,0.5439]
[1761630510369,0.22528157,4081.5,4081.4,0.7726]
[1761630510572,0.00248157,4081.5,4081.4,0.7726]
[1761630513174,0.3334,4081.4,4081.3,0.3267]
[1761630513371,0.5441,4081.4,4081.3,0.3267]
[1761630513575,0.7669,4081.4,4081.3,0.5439]
[1761630514173,0.4335,4081.4,4081.2,0.00199714]
[1761630514375,0.7991,4081.3,4081.2,0.00199714]
[1761630514578,0.7991,4081.3,4081.2,0.31999714]
[1761630515571,0.7991,4081.3,4081.2,0.00199714]
[1761630516080,41.5991,4081.3,4081.2,0.00199714]
[1761630517881,41.5991,4081.3,4081.2,0.76729714]
[1761630517882,40.8,4081.3,4081.2,0.76729714]
[1761630518479,41.1433,4081.3,4081.2,0.00199714]
[1761630519179,41.1433,4081.3,4081.2,0.54449714]
[1761630519373,40.8,4081.3,4081.2,0.89499714]
[1761630520181,41.1433,4081.3,4081.2,0.31999714]
[1761630521387,41.1433,4081.3,4081.2,0.00199714]
[1761630522073,41.1433,4081.3,4081.2,0.31999714]
[1761630522474,40.8,4081.3,4081.2,0.54449714]
[1761630522781,40.8,4081.3,4081.2,0.76729714]
[1761630524275,41.1433,4081.3,4081.2,0.00199714]
[1761630527580,40.8,4081.3,4081.2,0.76729714]
[1761630529680,41.1433,4081.3,4081.2,0.00199714]
[1761630532987,0.4558,4080.5,4080.4,1.31696289]
[1761630533186,0.7991,4080.3,4080.2,0.318]
[1761630533382,0.3433,4080.7,4080.2,0.7653]
[1761630533588,0.3433,4080.7,4080.0,0.57667]
[1761630533589,0.7991,4080.7,4080.6,0.2245]
[1761630533787,0.7991,4080.7,4080.6,0.5425]
[1761630533987,0.7991,4080.7,4080.6,0.54481009]
[1761630534391,0.7991,4080.7,4080.6,0.00231009]
[1761630535294,0.7991,4080.7,4080.6,0.32031009]
[1761630539293,0.7991,4080.7,4080.6,0.54481009]
[1761630539803,0.4558,4080.7,4080.6,0.76761009]
[1761630540390,0.7991,4080.7,4080.6,0.76761009]
[1761630541495,0.4558,4080.7,4080.6,0.76761009]
[1761630541692,0.2316,4081.0,4080.6,0.89072009]
[1761630541905,0.2316,4081.0,4080.9,0.7653]
[1761630542099,40.8,4081.3,4081.2,0.2245]
[1761630542408,0.23408157,4081.5,4081.3,0.318]
[1761630542594,0.23408157,4081.5,4081.4,0.4473]
[1761630542795,41.03408157,4081.5,4081.4,0.7653]
[1761630543601,41.37738157,4081.5,4081.4,0.7653]
[1761630544406,41.03408157,4081.5,4081.4,0.7653]
[1761630545909,42.63812403,4081.5,4081.4,0.7653]